Cogmind - Beta 10.2 @@@ ROGUE MODE // 2021.05.22 @ 20:50:57 Player: RavenousxxxDemon Result: Destroyed by S-10 Pest with Light Assault Rifle Performance ------------- Evolutions (1) 500 Regions Visited (2) 400 Robots Destroyed (14) 70 Value Destroyed (299) 299 Prototype IDs (0) 0 Alien Tech Used (0) 0 Bonus (0) 0 TOTAL SCORE: 1269 Bonus ------- None Cogmind --------- Core Integrity 0/400 Matter 136/300 Energy 99/100 System Corruption 0% Temperature Cool (0) Movement Core (350) Ox6 Location -9/Materials Parts ------- > --- POWER (1) -------- (None) > --- PROPULSION (2) --- (None) > --- UTILITY (3) ------ Small Storage Unit Large Storage Unit Targeting Computer > --- WEAPON (3) ------- (None) > --- INVENTORY (12) --- Aluminum Leg Heat Sink Peak State ------------ > --- POWER ------------ Light Ion Engine > --- PROPULSION ------- Wheel Compact Wheel > --- UTILITY ---------- Small Storage Unit Large Storage Unit Targeting Computer > --- WEAPON ----------- Spread Laser Light Assault Rifle Light Cannon > --- INVENTORY -------- Heat Sink [Rating: 10] Favorites ----------- Power Light Ion Engine Engine Light Ion Engine Propulsion Aluminum Leg Leg Aluminum Leg Wheel Compact Wheel Utility Small Storage Unit Storage Small Storage Unit Processor Targeting Computer Weapon Light Assault Rifle Energy Gun Medium Laser Ballistic Gun Light Assault Rifle Ballistic Cannon Light Cannon Build | -11 -10 -9 ------- Run | Scr Mat Mat Slots Evolved 2 | . . 2 Power . | . . . Propulsion . | . . . Utility 1 | . . 1 Weapon 1 | . . 1 Parts Attached 19 | 6 5 8 Power 4 | 1 1 2 Engine 4 | 1 1 2 Core . | . . . Reactor . | . . . Propulsion 4 | 2 . 2 Treads . | . . . Leg 2 | 2 . . Wheel 2 | . . 2 Hover . | . . . Flight . | . . . Utility 3 | 1 1 1 Device . | . . . Storage 2 | 1 1 . Processor 1 | . . 1 Hackware . | . . . Protection . | . . . Artifact . | . . . Weapon 8 | 2 3 3 Energy Gun 4 | 1 2 1 Energy Cannon . | . . . Ballistic Gun 3 | 1 . 2 Ballistic Cannon 1 | . 1 . Launcher . | . . . Special Weapon . | . . . Impact Weapon . | . . . Slashing Weapon . | . . . Piercing Weapon . | . . . Special Melee Weapon . | . . . Unidentified Prototypes . | . . . Parts Lost 13 | . 1 12 Power 3 | . . 3 Propulsion 4 | . . 4 Utility . | . . . Weapon 6 | . 1 5 Highest Loss Streak 7 | . 1 7 Average Slot Usage (%) 83 | . 95 73 Engine 10 | . 14 8 Leg 17 | . 28 8 Wheel 4 | . . 7 Storage 23 | . 26 22 Processor 2 | . . 5 Energy Gun 8 | . 12 5 Ballistic Gun 8 | . 12 6 Ballistic Cannon 5 | . 1 9 Naked Turns . | . . . Heaviest Build 31 | 9 28 31 Greatest Support 26 | 20 20 26 Greatest Overweight (x) 8 | 1 1 8 Average Overweight (x) 1 | . . 1 Largest Inventory Capacity 12 | 6 12 12 Average Capacity 11 | 4 11 12 Most Carried 9 | 4 9 7 Average Carried 4 | 2 4 4 Final Capacity 12 | 6 12 12 Final Carried 7 | 4 7 2 Class Distribution -------------------- 97% | Mutant Dominant Class ---------------- Mutant | -10/Materials Mutant | -9/Materials Resources | -11 -10 -9 ----------- Run | Scr Mat Mat Matter Collected 295 | 234 61 . Remotely . | . . . Salvage Created 324 | . 159 165 Parts 23 | . 12 11 Haulers Intercepted 1 | . 1 . Recyclers Shooed . | . . . Parts Field Recycled . | . . . Retrieved Matter . | . . . Parts Self-Destructed . | . . . Prevented . | . . . Kills | -11 -10 -9 ------- Run | Scr Mat Mat Combat Hostiles Destroyed 12 | . 4 8 Guns 7 | . 4 3 Cannons 3 | . . 3 AOE 2 | . . 2 Classes Destroyed 5 | . 4 1 Hauler 1 | . 1 . Watcher 1 | . 1 . Swarmer 7 | . 3 4 Grunt 4 | . 1 3 Sentry 1 | . . 1 Best Kill Streak 3 | . 3 3 Combat Bots Only 3 | . 3 3 Max Kills in Single Turn 2 | . 1 2 Gunslinging . | . . . Exploded 2 | . . 2 Melee . | . . . Uniques/NPCs Destroyed . | . . . Combat | -11 -10 -9 -------- Run | Scr Mat Mat Damage Taken 1503 | . 203 1300 Core 434 | . 29 405 Absorbed by Shields . | . . . Core Remaining (%) 94 | 100 88 . Volleys Fired 47 | . 16 31 Largest 3 | . 2 3 Hottest 120 | . 70 120 Shots Fired 93 | . 31 62 Gun 68 | . 31 37 Cannon 25 | . . 25 Launcher . | . . . Special . | . . . Kinetic 59 | . 16 43 Thermal 34 | . 15 19 Explosive . | . . . Electromagnetic . | . . . Robot Hit Streak 7 | . 7 7 Robot Miss Streak 6 | . 2 6 Penetration Max . | . . . Secondary Targets 1 | . 1 . Max Gunslinging Chain 1 | . 1 . Shots Hit Robots 49 | . 17 32 Core Hits 26 | . 9 17 Critical Hits . | . . . Critical Kills . | . . . Critical Parts Destroyed . | . . . Melee Attacks . | . . . Impact . | . . . Slashing . | . . . Piercing . | . . . Sneak Attacks . | . . . Combat Hostiles . | . . . Follow-up Attacks . | . . . Damage Inflicted 757 | . 155 602 Guns 421 | . 155 266 Cannons 197 | . . 197 Explosions 139 | . . 139 Melee . | . . . Ramming . | . . . Kinetic 336 | . 52 284 Thermal 421 | . 103 318 Explosive . | . . . Electromagnetic . | . . . Impact . | . . . Slashing . | . . . Piercing . | . . . Highest Corruption . | . . . Average Corruption . | . . . Corruption Purged . | . . . Overload Shots . | . . . Overflow Damage 75 | . . 75 Projectiles 3 | . . 3 Explosions 72 | . . 72 Melee . | . . . Knockbacks 8 | . . 8 Impact . | . . . Kinetic 6 | . . 6 Secondary 2 | . . 2 Self-Inflicted Damage 212 | . . 212 Shots 2 | . . 2 Rammed . | . . . Targets Rammed . | . . . Kicked . | . . . Crushed . | . . . Highest Temperature 171 | . 70 171 Average Temperature 47 | . 28 59 Received Heat Transfer 216 | . 66 150 Siege Activations . | . . . Robots Corrupted . | . . . Combat Hostiles . | . . . Parts Fried . | . . . Impact Corruptions . | . . . Robots Melted . | . . . Combat Hostiles . | . . . Parts Melted 1 | . 1 . Heat Transferred 642 | . 273 369 Parts Sabotaged . | . . . Parts Stolen . | . . . Parts Stripped . | . . . Power Chain Reactions . | . . . Missiles Intercepted . | . . . Alert | -11 -10 -9 ------- Run | Scr Mat Mat Peak Influence 332 | . 149 332 Initial 62 | . . 62 Average 95 | . 81 122 Maximum Alert Level 1 | . . 1 Low Security (%) 93 | 100 100 87 Level 1 6 | . . 12 Level 2 . | . . . Level 3 . | . . . Level 4 . | . . . Level 5 . | . . . High Security . | . . . Max Security . | . . . Squads Dispatched 4 | . 1 3 Investigation . | . . . Extermination . | . . . Reinforcement 4 | . 1 3 Assault . | . . . Garrison . | . . . Intercept . | . . . Construction Impeded . | . . . Haulers Reinforced . | . . . Stealth | -11 -10 -9 --------- Run | Scr Mat Mat Distress Signals 2 | . 1 1 Communications Jammed . | . . . Distress Signals . | . . . Times Spotted 28 | . 9 19 Peak Tracking Total 8 | . 6 8 Tactical Retreats 2 | . . 2 Traps | -11 -10 -9 ------- Run | Scr Mat Mat Traps Triggered 1 | . 1 . Indirectly . | . . . Trap Hack Attempts . | . . . Triggered . | . . . Disarmed . | . . . Reprogrammed . | . . . Reused . | . . . Traps Extracted . | . . . Installed . | . . . Triggered . | . . . Machines | -11 -10 -9 ---------- Run | Scr Mat Mat Machines Disabled 3 | . . 3 Max in Single Turn 2 | . . 2 Machines Sabotaged . | . . . Garrisons Compromised . | . . . Overloaded Fab Kills . | . . . Fab Network Shutdowns . | . . . Hacking | -11 -10 -9 --------- Run | Scr Mat Mat Machines Accessed . | . . . Terminals . | . . . Fabricators . | . . . Repair Stations . | . . . Recycling Units . | . . . Scanalyzers . | . . . Garrison Access . | . . . Total Hacks . | . . . Successful . | . . . Failed . | . . . Catastrophic . | . . . Database Lockouts . | . . . Manual . | . . . Terminals . | . . . Fabricators . | . . . Repair Stations . | . . . Recycling Units . | . . . Scanalyzers . | . . . Garrison Access . | . . . Terminal Hacks . | . . . Fabricator Hacks . | . . . Repair Station Hacks . | . . . Recycling Unit Hacks . | . . . Scanalyzer . | . . . Garrison Access Hacks . | . . . Unauthorized Hacks . | . . . Terminals . | . . . Fabricators . | . . . Repair Stations . | . . . Recycling Units . | . . . Scanalyzers . | . . . Garrison Access . | . . . Data Cores Recovered . | . . . Used . | . . . Hacking Detections . | . . . Full Trace Events . | . . . Feedback Events . | . . . Feedback Blocked . | . . . Robot Schematics Acquired . | . . . Robots Built . | . . . Matter . | . . . Time . | . . . Total Robot Build Rating . | . . . Part Schematics Acquired . | . . . Parts Built . | . . . Matter . | . . . Time . | . . . Total Part Build Rating . | . . . Parts Repaired . | . . . Time . | . . . Parts Recycled . | . . . Recycled Matter . | . . . Retrieved Matter . | . . . Retrieved Components . | . . . Parts Scanalyzed . | . . . Part Schematics Acquired . | . . . Parts Damaged . | . . . Bothacking | -11 -10 -9 ------------ Run | Scr Mat Mat Used RIF Installer . | . . . Robots Hacked . | . . . Non-combat . | . . . Combat . | . . . Robot Hacks Applied . | . . . Relay Couplers Released . | . . . Robots Rewired . | . . . Allies Hacked . | . . . Hacks Repelled . | . . . Allies | -11 -10 -9 -------- Run | Scr Mat Mat Total Allies . | . . . Largest Group . | . . . Highest-Rated Group . | . . . Highest-Rated Ally . | . . . Total Orders . | . . . Ally Attacks . | . . . Total Damage . | . . . Kills . | . . . Allies Corrupted . | . . . Allies Melted . | . . . Intel | -11 -10 -9 ------- Run | Scr Mat Mat Robot Analysis Total . | . . . Derelict Logs Recovered . | . . . Drone Launches . | . . . Drone Recoveries . | . . . Exploration | -11 -10 -9 ------------- Run | Scr Mat Mat Turns Passed 885 | 77 354 454 Spaces Moved 464 | 54 205 205 Core 33 | 13 . 20 Treads . | . . . Legs 330 | 41 205 84 Wheels 101 | . . 101 Hover . | . . . Flight . | . . . Fastest Speed 50 | 50 120 100 Average Speed 143 | 108 145 151 Slowest Speed 450 | 120 150 450 Overloaded Moves . | . . . Propulsion Burnouts . | . . . Robots Hopped . | . . . Cave-ins Triggered . | . . . Exploration Rate (%) 20 | 4 35 23 Regions Visited 2 Branch Regions . Pre-discovered Areas . | . . . Known Exits Taken . | . . . Unknown Exits Taken 2 | 1 1 . Scrap Searched . | . . . Spaces Dug . | . . . Terrain Destroyed 31 | . . 31 Melee . | . . . Projectile . | . . . AOE 31 | . . 31 Terrain Rammed . | . . . Walls Destroyed . | . . . Machines Disabled . | . . . Actions | -11 -10 -9 --------- Run | Scr Mat Mat Total 604 | 73 234 297 Wait 50 | . . 50 Move 462 | 53 204 205 Hop . | . . . Pick Up 23 | 12 8 3 Fast Attach . | . . . Attach 18 | 6 4 8 Detach . | . . . Swap 1 | . 1 . Drop 3 | 2 1 . Fire 47 | . 16 31 Melee . | . . . Ram . | . . . Kick . | . . . Crush . | . . . Escape Stasis . | . . . Rewire . | . . . Trap . | . . . Miscellaneous . | . . . Route ------- -11/Scrapyard -10/Materials -9/Materials (discovered 1 exit: [*Min]) History --------- Turn | Location | Event 7 | -11/Scrapyard | Discovered new exit (range 16) 78 | -11/Scrapyard | Entered Materials 294 | -10/Materials | Discovered new exit (range 10) 307 | -10/Materials | Build established: Mutant 432 | -10/Materials | Entered another Materials area 432 | -9/Materials | Evolved 2 slots: Utility x1, Weapon x1 443 | -9/Materials | Discovered new exit (range 5) 635 | -9/Materials | Lost 5 parts (1p2n2w) 810 | -9/Materials | Core integrity fell below 50% 879 | -9/Materials | Core integrity fell below 20% 886 | -9/Materials | Destroyed by S-10 Pest with Light Assault Rifle Last Messages --------------- 00817_ K-01 Serf collects debris. 00817_ U-05 Engineer lays Concrete. 00819_ Acquired Imp. Ion Engine. 00819_ U-05 Engineer lays Concrete. 00820_ K-01 Serf collects debris. 00820_ U-05 Engineer lays Concrete. 00821_ K-01 Serf collects debris. 00821_ U-05 Engineer lays Concrete. 00823_ U-05 Engineer builds a Wall. 00824_ K-01 Serf collects debris. 00824_ U-05 Engineer lays Concrete. 00825_ U-05 Engineer builds a Door. 00827_ U-05 Engineer builds a Wall. 00837_ T-07 Excavator is excavating. 00839_ Lgt. Assault Rifle destroyed. 00841_ T-07 Excavator is excavating. 00845_ Com. Wheel destroyed. 00845_ T-07 Excavator is excavating. 00851_ Spread Laser destroyed. 00878_ Imp. Ion Engine destroyed. Map ----- +----------------------------------------------------+ | | | | | | | | | | | | | | | | | | | | | | | | | | | ??????????????########????#######????????????????? | | ??????????????# #????# #???????????????? | | ??????????????# #????# T #???????????????? | | ######????????# "" #????# !!!#???????????????? | | #????????# T" #?#### !! #???????????????? | | #????????# " #?# + / !! #???????????????? | | #????????# #?# #? ????????????????? | | #############/##### ####+###### #??????? | | + ss T ?????? | | ############# %% ###### #??????? | | #???????????# !== #?????????????????? | | #???????????# != #?????????????????? | | ##########???????####### @!= #???????#?????????? | | #?????????????# #??#### ##????????? | | #?????????????# #? #????????? | | #?????????????# #? "" #????????? | | #### #??????????#### """ # """ #????????? | | #??????#??????????# """ Y# R" #????????? | | #?????????????????# """ + """ #????????? | | #??#??????????????# # #????????? | | #??# ?????????????# # #????????? | | #??# ????????????# #? #????????? | | #?## ???????????# #? #????????? | | #?# ###+####### | #??#######????????? | | #?# % | #?????????????????? | | #?# % #?????????????????? | | #?# #?????????????????? | | #?# #### "" ##+## ;"# ##?????????????????? | | #??????????# " "" #??????????????????? | | #??????????# " "" #??????????????????? | | +#######?????# " "# #??????????????????? | | #?????# " "# #??????????????????? | | "" ####### *%" "# #??????????????????? | | """"" + =" "# #??????????????????? | | """ ######### " ## #??????????????????? | | #???????# " #? ???????????????????? | | ########???????# ##"""""####?+???????????????????? | +----------------------------------------------------+ Best States ------------- Heat Dissipation 28 Energy Generation 12 Energy Capacity 265 Matter Stores 296 Matter Capacity 300 Sight Range 16 Terrain Scan Density 10 Evasion (%) 50 Targeting Accuracy 5 Item Schematics ----------------- None Robot Schematics ------------------ None Fabricated ------------ Nothing Alien Tech Used ----------------- None Achievements -------------- None Challenges ------------ None Game ------ Seed ReflectiveAssemblyKatana Manual? 0 Play Time 00:09:59 Cumulative 7.1 hours Start 2021.05.22 @ 19:57:17 End 2021.05.22 @ 20:50:57 Sessions 2 Manual Loads 0 Difficulty Rogue Special Mode None Game No. 16 Rogue 16 Adventurer 0 Explorer 0 Win Type - Total 0 Types 0/0/0/0/0/0/0/0/0 Lore% 2 Gallery% 13 Achievement% 11 Wizard Run 0 Options --------- ASCII 0 Keyboard 0 Movement Numpad Keybinds 0 Fullscreen 1 Font 18/SmallcapsGlow Map View 76x50 Tactical HUD 1 Map Filters NONE Filters NONE Steam 1 RUN: 535a93c0-9b96-479c-8634-f227714f0d66